[Event "GER-ch Youth-U18 2022"]
[Site "Willingen"]
[Date "2022.06.09"]
[Round "7.9"]
[White "Muller, Magnus"]
[Black "Haack, Kevin"]
[Result "1/2-1/2"]
[ECO "D30"]
[WhiteElo "1464"]
[BlackElo "2176"]
[Annotator "TA"]
[PlyCount "88"]
[EventDate "2022.06.05"]
[EventType "swiss"]
[EventRounds "9"]
[EventCountry "GER"]
[SourceTitle "playchess.com"]
[Source "ChessBase"]
[SourceQuality "1"]
[TimeControl "40/4500+30:900+30"]

{[%evp 9,88,-12,39,16,13,14,20,13,23,17,27,28,41,31,26,35,45,39,84,82,75,80,82,67,70,67,65,34,36,29,27,20,34,33,25,7,19,22,21,31,25,22,47,16,12,12,39,0,37,30,23,19,31,0,0,-37,11,16,17,0,0,-1,-6,-27,3,0,15,15,114,0,0,0,0,0,0,0,0,0,0,0,0]} 1. d4 {[%emt 0:00:00]} d5 {[%emt 0:00:00]} 2. c4 {[%emt 0:00:00]} e6 {[%emt 0:00:00]} 3. Nf3 {[%emt 0:00:00]} Nf6 {[%emt 0:00:00]} 4. g3 {[%emt 0:00:00]} Bb4+ {[%emt 0:00:00]} 5. Nc3 {[%emt 0:00:00]} Ne4 {[%emt 0:00:00]} ({Black should play} 5... O-O $11) 6. Bd2 {[%emt 0:08:47] aiming for Nxe4. E20: Nimzo-Indian: 4 g3 and 4 f3.} Bxc3 {[%emt 0:02:44]} 7. Bxc3 {[%emt 0:00:22] [#]} O-O $146 {[%emt 0:03:14]} ({Predecessor:} 7... Nxc3 8. bxc3 O-O 9. c5 b6 10. cxb6 axb6 11. Bg2 Ra3 12. Qd2 Nc6 13. O-O Ba6 {0-1 (47) Stroganov,A (1933)-Korolev,A (2087) St Petersburg 2007}) 8. Bg2 {[%emt 0:01:56]} Nxc3 {[%emt 0:05:45]} 9. bxc3 {[%emt 0:00:07]} c6 {[%emt 0:00:03]} 10. O-O {[%emt 0:02:27]} Nd7 {[%emt 0:02:50]} 11. Nd2 {[%emt 0:04:09]} Qc7 {[%emt 0:07:39]} 12. cxd5 {[%emt 0:02:11]} cxd5 {[%emt 0:11:37]} 13. Qb3 {[%emt 0:02:56]} Nb6 {[%emt 0:07:11]} 14. a4 {[%emt 0:12:24]} Rb8 {[%emt 0:05:35]} 15. a5 {[%emt 0:12:28]} Nd7 {[%emt 0:02:24]} 16. Rfc1 {[%emt 0:00:37] White is more active.} b5 {[%emt 0:01:39] Prevents c4.} 17. axb6 $1 {[%emt 0:07:58]} Rxb6 {[%emt 0:05:28]} 18. Qd1 {[%emt 0:00:54]} Ba6 {[%emt 0:02:50] Against c4} 19. e4 {[%emt 0:02:54]} Nf6 {[%emt 0:01:35]} 20. Ra3 {[%emt 0:04:56]} Bb5 {[%emt 0:01:54]} 21. exd5 {[%emt 0:03:52]} exd5 {[%emt 0:00:18]} 22. Nb3 {[%emt 0:00:48][%cal Bd2b3,Bb3c5,Bc5d3,Bd3b4][%mdl 32]} a6 {[%emt 0:03:18]} 23. Nc5 {[%emt 0:00:11]} Nd7 {[%emt 0:02:33]} 24. Nd3 $1 {[%emt 0:00:08]} Qd6 {[%emt 0:00:45]} 25. Rca1 {[%emt 0:00:58]} Rc8 {[%emt 0:01:26]} 26. Nb4 {[%emt 0:04:36]} Nf6 {[%emt 0:02:12]} 27. Qf3 {[%emt 0:00:30][%cal Rb4d5]} Bc4 {[%emt 0:01:52]} 28. Qf5 {[%emt 0:00:17]} Qe6 {[%emt 0:03:04]} 29. Qxe6 {[%emt 0:04:39]} fxe6 {[%emt 0:00:26]} 30. f3 {[%emt 0:02:58]} Kf7 {[%emt 0:03:23]} 31. Bf1 {[%emt 0:00:45]} a5 {[%emt 0:01:28]} 32. Nc2 {[%emt 0:01:40]} a4 {[%emt 0:01:17]} (32... Bb3 $15 33. Ne3 Rxc3) 33. Bxc4 $11 {[%emt 0:02:28]} Rxc4 {[%emt 0:00:06]} 34. Nb4 {[%emt 0:00:34]} Rb7 {[%emt 0:00:03]} 35. Nd3 {[%emt 0:01:14] [#] Hoping for Ne5+.} Nd7 {[%emt 0:00:58]} 36. Kf2 {[%emt 0:00:48]} Kf6 {[%emt 0:04:08]} 37. Ke3 {[%emt 0:00:12]} Rbc7 {[%emt 0:01:08]} 38. Kd2 {[%emt 0:01:18]} e5 {[%emt 0:00:47]} (38... Ra7 $11 {keeps the balance.}) 39. dxe5+ {[%emt 0:01:11]} ({White has to play} 39. Rxa4 $16 {Ra6+ is the strong threat.} exd4 40. cxd4) 39... Nxe5 {[%emt 0:00:16] The position is equal.} 40. Nxe5 {[%emt 0:00:00]} Kxe5 {[%emt 0:00:08]} 41. Rxa4 {[%emt 0:00:00]} Rxc3 $16 {[%emt 0:00:00] KRR-KRR} 42. Re1+ {[%emt 0:00:00]} Kd6 {[%emt 0:00:00]} 43. Ra6+ {[%emt 0:00:00]} Kd7 {[%emt 0:00:00]} 44. Ra5 {[%emt 0:00:00]} Kd6 {[%emt 0:00:00] Weighted Error Value: White=0.10 (very precise) /Black=0.16 (very precise)} 1/2-1/2

[Event "GER-ch Youth-U18 2022"]
[Site "Willingen"]
[Date "2022.06.09"]
[Round "7.10"]
[White "Leonard, Timo"]
[Black "Kallweit, Paul"]
[Result "1-0"]
[ECO "D10"]
[WhiteElo "2018"]
[BlackElo "1863"]
[Annotator "TA"]
[PlyCount "125"]
[EventDate "2022.06.05"]
[EventType "swiss"]
[EventRounds "9"]
[EventCountry "GER"]
[SourceTitle "playchess.com"]
[Source "ChessBase"]
[SourceQuality "1"]
[TimeControl "40/4500+30:900+30"]

{[%evp 9,124,57,98,87,101,64,127,135,147,72,221,223,213,238,228,214,226,229,219,202,231,217,198,175,220,156,141,155,152,133,144,135,105,113,148,64,99,33,31,0,43,56,43,37,130,0,5,0,0,0,29,9,93,0,0,0,0,0,278,-127,-78,-64,0,0,0,0,14,0,0,0,0,0,0,-8,-8,-17,0,0,0,-44,0,0,0,0,0,0,342,342,708,691,1125,994,178,1229,1247,1246,1206,1164,1283,1259,1549,1441,1556,1545,1121,1113,1615,1240,1321,1212,5073,4391,2581,1896,1930,1898,29999]} 1. d4 {[%emt 0:00:00]} d5 {[%emt 0:00:00]} 2. c4 {[%emt 0:00:00]} c6 {[%emt 0:00:00]} 3. Nc3 {[%emt 0:00:00]} Nf6 {[%emt 0:00:00]} 4. e3 {[%emt 0:00:00]} Qb6 {[%emt 0:02:09]} 5. Qc2 {[%emt 0:00:00]} dxc4 {[%emt 0:09:35]} 6. Bxc4 {[%emt 0:00:00] D10: Slav Defence: 3 cxd5 (without early Nf3) and 3 Nc3.} Bg4 {[%emt 0:03:29] [#]} 7. e4 $146 {[%emt 0:13:55]} ({Predecessor:} 7. f3 Bh5 8. Nge2 e6 9. e4 Nbd7 10. Be3 Bg6 11. O-O Bd6 12. Bd3 e5 13. Bf2 {1-0 (71) Santana,I-Thorgrimsdottir,A Bled 2002}) 7... Qb4 {[%emt 0:22:07]} (7... Qxd4 $14 8. Qb3 e6) 8. Qd3 $16 {[%emt 0:10:09] White is better.} e5 {[%emt 0:14:39]} 9. Bd2 {[%emt 0:11:10]} (9. dxe5 $142 Nfd7 10. a3) 9... Nbd7 {[%emt 0:04:48] [#]} (9... Qxb2 10. Rb1 Qa3 11. dxe5 (11. Rxb7 Nbd7 $14)) (9... Qe7 $16) 10. Nb5 $1 $18 {[%emt 0:10:19][%mdl 512]} cxb5 {[%emt 0:01:59]} 11. Bxf7+ {[%emt 0:00:55]} Kxf7 {[%emt 0:00:15]} 12. Bxb4 {[%emt 0:00:04]} Bxb4+ {[%emt 0:00:06]} 13. Kf1 {[%emt 0:00:02]} Bd6 {[%emt 0:07:08]} 14. f3 {[%emt 0:01:44]} (14. Qxb5 exd4 15. Nf3 Rhe8 $14) 14... Bh5 {[%emt 0:00:36]} 15. g4 {[%emt 0:03:26]} Bg6 {[%emt 0:00:11]} 16. g5 {[%emt 0:00:20]} Ne8 {[%emt 0:00:21]} 17. Qxb5 {[%emt 0:00:46]} Ke7 {[%emt 0:02:49]} 18. Ne2 {[%emt 0:01:17] And now Rd1 would win.} (18. Qxb7 Nc7 $16) 18... Nc7 {[%emt 0:00:55]} 19. Qb3 {[%emt 0:01:35] Black must now prevent Rd1.} (19. Qxb7 Rhb8 20. Qc6 Rxb2 $11) 19... Rhf8 {[%emt 0:05:00]} 20. Kg2 {[%emt 0:01:23] dxe5 is the strong threat.} ({Don't blunder} 20. Qxb7 $2 Rab8 21. Qc6 Rxf3+ 22. Kg2 Re3 $19) 20... exd4 {[%emt 0:02:42]} 21. Nxd4 {[%emt 0:07:02]} Nc5 {[%emt 0:00:07]} 22. Qe3 {[%emt 0:01:03]} (22. Qc4 $16 N5e6 23. Rad1) 22... N7e6 $14 {[%emt 0:00:45]} 23. Nxe6 {[%emt 0:00:49]} (23. Rhd1 $16 {aiming for Nxe6.} Rad8 24. e5) 23... Nxe6 {[%emt 0:00:05]} 24. Rhd1 {[%emt 0:01:22][%cal Od1d6] Strongly threatening Rxd6!} (24. Rhf1 $5 {[%cal Ra1d1]}) 24... Bc5 {[%emt 0:01:09]} 25. Qb3 {[%emt 0:01:04]} b6 {[%emt 0:03:56]} 26. Qa4 {[%emt 0:02:09][%csl Gd1][%cal Ra4d7]} Rfd8 {[%emt 0:00:53] Inhibits Qd7+.} (26... Rfe8 $1 $14) 27. b4 {[%emt 0:04:54]} (27. Rxd8 $1 $16 Rxd8 28. Rd1 (28. Qxa7+ Rd7 $11)) 27... Bd4 $11 {[%emt 0:01:27]} 28. Rac1 {[%emt 0:00:36]} Be8 {[%emt 0:00:34] A strong pair of Bishops.} 29. Qa6 {[%emt 0:01:48][%cal Od1d4]} Rd7 {[%emt 0:00:34]} 30. Rd2 {[%emt 0:04:49]} Rad8 {[%emt 0:00:28]} (30... Bf7 $11 {keeps the balance.}) 31. Rcd1 {[%emt 0:00:12]} ({Better is} 31. Rc8 $1 $16) 31... Bh5 {[%emt 0:00:23]} 32. Qb5 {[%emt 0:01:34]} Rf8 {[%emt 0:01:04]} 33. Rf1 {[%emt 0:02:12]} Rc7 $2 {[%emt 0:00:51][%mdl 8192] [#]} (33... h6 $11) 34. a4 $2 {[%emt 0:03:06]} ({White has to play} 34. Rxd4 $1 $18 {[%mdl 512]} Nxd4 35. Qe5+ Ne6 36. f4) 34... Be8 {[%emt 0:00:29]} ({Stronger than} 34... Be3 35. Ra2 $15) (34... Nf4+ $142 35. Kg3 Be8) 35. Qa6 $17 {[%emt 0:00:36]} Be5 {[%emt 0:00:46]} ({Black should play} 35... Be3 $15 36. Rdd1 Nf4+ 37. Kh1 Bd7) 36. a5 $11 {[%emt 0:01:07]} Bf4 {[%emt 0:00:30]} 37. axb6 {[%emt 0:00:35]} axb6 {[%emt 0:00:02]} 38. Ra2 {[%emt 0:00:27]} b5 {[%emt 0:00:29]} 39. Qb6 {[%emt 0:00:35]} Bd7 {[%emt 0:00:27]} 40. Rd1 {[%emt 0:01:00]} Rfc8 {[%emt 0:00:41]} 41. Ra7 {[%emt 0:00:00]} Rxa7 {[%emt 0:00:00]} 42. Qxa7 {[%emt 0:00:00] Chess con chili.} Rc2+ {[%emt 0:00:00]} 43. Kf1 {[%emt 0:00:00]} Rc7 {[%emt 0:00:00]} 44. Qa2 {[%emt 0:00:00]} Nxg5 {[%emt 0:00:00]} 45. Qg8 {[%emt 0:00:00]} Ne6 {[%emt 0:05:31]} 46. Qxh7 {[%emt 0:00:00]} Rc3 {[%emt 0:02:48]} 47. Qh4+ {[%emt 0:02:24]} Ng5 $2 {[%emt 0:02:05][%mdl 8192] [#] Black is on the road to losing.} (47... Ke8 $11 {and Black is okay.}) 48. Rd5 $1 $18 {[%emt 0:06:10]} Bh3+ $2 {[%emt 0:02:40]} (48... Rxf3+ 49. Ke2 Re3+ 50. Kd1 Rxe4) 49. Ke2 {[%emt 0:00:35]} Rc2+ {[%emt 0:06:52]} 50. Kd3 {[%emt 0:00:02]} Rd2+ {[%emt 0:00:30]} 51. Kc3 {[%emt 0:00:04]} Rxd5 {[%emt 0:00:30]} 52. exd5 {[%emt 0:00:03]} Be5+ {[%emt 0:00:30] [#]} 53. Kb3 $1 {[%emt 0:00:14] Hoping for f4.} Bf6 {[%emt 0:00:25]} 54. f4 {[%emt 0:00:18][%cal Bf3f4,Bf4g5][%mdl 32]} Bg2 {[%emt 0:00:37]} 55. fxg5 {[%emt 0:00:09]} Bxd5+ {[%emt 0:00:05]} 56. Kc2 {[%emt 0:00:12]} Be5 {[%emt 0:00:17]} 57. Kd3 {[%emt 0:00:54]} Kd6 {[%emt 0:00:21]} 58. Qh8 {[%emt 0:01:06]} Bc4+ {[%emt 0:00:43]} 59. Ke3 {[%emt 0:00:19]} Ke6 {[%emt 0:00:28]} 60. h4 {[%emt 0:02:29]} Bc3 {[%emt 0:00:22]} 61. Qf8 {[%emt 0:00:30]} Bb2 {[%emt 0:00:48]} 62. Qe8+ {[%emt 0:01:13]} Kf5 {[%emt 0:00:23]} 63. Qe4# {[%emt 0:00:06] Weighted Error Value: White=0.29 (precise) /Black=0.45} 1-0

[Event "GER-ch Youth-U18 2022"]
[Site "Willingen"]
[Date "2022.06.09"]
[Round "7.11"]
[White "Dietlmeier, Tobias"]
[Black "Hassemeier, Mika"]
[Result "0-1"]
[ECO "B12"]
[WhiteElo "1886"]
[BlackElo "2127"]
[Annotator "TA"]
[PlyCount "72"]
[EventDate "2022.06.05"]
[EventType "swiss"]
[EventRounds "9"]
[EventCountry "GER"]
[SourceTitle "playchess.com"]
[Source "ChessBase"]
[SourceQuality "1"]
[TimeControl "40/4500+30:900+30"]

{[%evp 9,72,54,82,62,66,40,33,-39,-36,-33,-37,-29,-17,-12,-13,-30,-14,-107,-95,-105,-116,-112,-65,-151,-118,-118,-117,-118,-70,-85,-81,-80,-68,-108,-114,-149,-149,-149,-149,-149,-149,-149,-149,-149,-149,-149,-149,-196,-195,-178,-178,-315,-295,-29967,-29968,-29969,-29969,-29966,0,-6244,0,-6183,-6179,-5210,-5210]} 1. e4 {[%emt 0:00:00]} c6 {[%emt 0:00:00]} 2. d4 {[%emt 0:00:00]} g6 {[%emt 0:00:00]} 3. c4 {[%emt 0:00:00]} Bg7 {[%emt 0:00:00]} 4. Nf3 {[%emt 0:00:00]} d6 {[%emt 0:00:00]} 5. Nc3 {[%emt 0:00:00]} a6 {[%emt 0:00:00]} 6. Be3 {[%emt 0:00:00] A42: Modern Defence: Averbakh Variation.} b5 {[%emt 0:00:00] [#]} 7. b3 $146 {[%emt 0:00:00]} ({Predecessor:} 7. a3 Nf6 8. h3 O-O 9. Rc1 Nbd7 10. Be2 bxc4 11. Bxc4 d5 12. exd5 Nb6 13. Bd3 cxd5 {½-½ (23) Gustafsson,J (2616)-Bischoff,K (2555) Austria 2005}) 7... Nf6 {[%emt 0:05:30]} 8. e5 {[%emt 0:06:51]} (8. Qc2 $14) 8... Ng4 $15 {[%emt 0:11:03]} 9. Bf4 {[%emt 0:04:29]} dxe5 $1 {[%emt 0:03:42]} 10. Nxe5 {[%emt 0:00:40]} ({Much weaker is} 10. Bxe5 Nxe5 11. Nxe5 O-O $17) 10... Nxe5 {[%emt 0:17:13]} 11. Bxe5 {[%emt 0:02:31]} Bxe5 {[%emt 0:02:39]} 12. dxe5 {[%emt 0:00:09]} Qa5 {[%emt 0:04:04]} 13. Qf3 {[%emt 0:08:19]} (13. Qd4 $11) 13... b4 $1 $17 {[%emt 0:02:14][%csl LRc3,LRe5]} 14. Ne2 {[%emt 0:04:28]} ({Reject} 14. Ne4 Qxe5 15. O-O-O Qa1+ 16. Kd2 Qxa2+ 17. Ke1 O-O $19) 14... Qxe5 {[%emt 0:01:03]} 15. Rd1 {[%emt 0:00:49]} Bf5 {[%emt 0:02:22]} ({Black should try} 15... a5 $17 16. Qg3 Qxg3 17. hxg3 Nd7) 16. Qg3 {[%emt 0:02:16]} (16. g3 $15) 16... Nd7 {[%emt 0:02:08]} 17. Qxe5 {[%emt 0:02:47]} Nxe5 {[%emt 0:00:06]} 18. Nd4 {[%emt 0:01:04]} Bd7 {[%emt 0:01:13] Black is more active.} (18... O-O-O $17 19. f4 Ng4) 19. c5 {[%emt 0:01:33]} a5 {[%emt 0:07:20]} 20. Be2 {[%emt 0:05:02]} O-O-O {[%emt 0:03:07]} 21. f4 {[%emt 0:07:03]} Ng4 {[%emt 0:00:22]} 22. Nxc6 {[%emt 0:02:00]} Bxc6 {[%emt 0:00:13]} 23. Bxg4+ {[%emt 0:00:09]} f5 {[%emt 0:00:31]} 24. Bf3 {[%emt 0:04:15]} Bxf3 {[%emt 0:00:40]} 25. gxf3 {[%emt 0:00:24]} Rxd1+ {[%emt 0:00:09]} 26. Kxd1 {[%emt 0:00:10][%mdl 4096] Endgame [#] KR-KR} Rd8+ $1 {[%emt 0:00:26]} 27. Ke2 {[%emt 0:01:33]} Kc7 {[%emt 0:07:08]} 28. h4 {[%emt 0:04:26] [#]} (28. Re1 $17 {might work better.}) 28... Rd5 $1 $19 {[%emt 0:02:13]} 29. Rc1 {[%emt 0:01:02]} Kc6 {[%emt 0:01:02]} 30. Ke3 {[%emt 0:02:49]} (30. Rc2 $142) 30... Rxc5 {[%emt 0:04:54]} 31. Rxc5+ {[%emt 0:02:25]} (31. Re1 $19) 31... Kxc5 {[%emt 0:00:07] KP-KP} 32. Kd3 {[%emt 0:00:50]} Kd5 {[%emt 0:00:05]} 33. Ke3 {[%emt 0:00:35]} Kc5 {[%emt 0:00:21]} (33... e6 $142 34. Kd3 e5 35. h5 exf4 36. hxg6 hxg6 37. Kd2 Kd4 38. Kd1 Ke3 39. a3 bxa3 40. Kc1 Kxf3 41. Kc2 Ke2 42. Kb1 f3 43. Ka2 Ke3 44. Kxa3 g5 45. Kb2 f2 46. Ka3 f1=Q 47. Ka4 Qa6 48. Ka3 Qd6+ 49. Kb2 Qd2+ 50. Kb1 Kd4 51. b4 Kc3 52. bxa5 Qb2#) 34. Kd3 {[%emt 0:00:39]} Kd5 {[%emt 0:00:05] aiming for ...e5.} 35. Ke3 {[%emt 0:00:15]} e6 {[%emt 0:03:45][%cal Be7e6,Be6e5][%mdl 32]} 36. Kd3 {[%emt 0:07:51]} e5 {[%emt 0:01:10] Weighted Error Value: White=0.46/Black=0.43} 0-1

[Event "GER-ch Youth-U18 2022"]
[Site "Willingen"]
[Date "2022.06.09"]
[Round "7.12"]
[White "Rohde, Niclas"]
[Black "Bornholdt, Joa Max"]
[Result "0-1"]
[ECO "C55"]
[WhiteElo "1730"]
[BlackElo "2155"]
[Annotator "TA"]
[PlyCount "90"]
[EventDate "2022.06.05"]
[EventType "swiss"]
[EventRounds "9"]
[EventCountry "GER"]
[SourceTitle "playchess.com"]
[Source "ChessBase"]
[SourceQuality "1"]
[TimeControl "40/4500+30:900+30"]

{[%evp 12,90,37,26,22,22,24,27,29,0,47,8,54,6,49,46,77,72,77,78,77,60,50,45,81,0,0,0,0,0,69,70,73,73,67,67,69,-90,-102,-156,-145,-140,-154,-135,-154,-150,-149,-159,-158,-150,-129,-129,-131,-125,-122,-123,-54,-52,-55,-55,-43,-44,-44,-57,-57,-57,-57,-207,-197,-1097,-1047,-547,-478,-933,-478,-940,-932,-759,-628,-29986,-29986]} 1. e4 {[%emt 0:00:00]} e5 {[%emt 0:00:00]} 2. Nf3 {[%emt 0:00:00]} Nc6 {[%emt 0:00:00]} 3. Bc4 {[%emt 0:00:00]} Nf6 {[%emt 0:00:00]} 4. d3 {[%emt 0:00:00]} Be7 {[%emt 0:00:00]} 5. O-O {[%emt 0:00:00]} O-O {[%emt 0:00:00]} 6. a4 {[%emt 0:00:00]} d6 {[%emt 0:00:00]} 7. h3 {[%emt 0:00:00]} Na5 {[%emt 0:00:00] C55: Two Knights: 4 d3, 4 d4 exd4 5 e5 and Max Lange Attack.} 8. Ba2 {[%emt 0:00:00]} c5 {[%emt 0:00:00]} 9. Na3 {[%emt 0:01:46]} Be6 {[%emt 0:00:00] [#] White has an edge.} 10. Bd2 $146 {[%emt 0:03:48][%cal Bc1d2,Bd2f4,Bf4g3][%mdl 32] Hoping for Bxe6.} ({Predecessor:} 10. Bxe6 fxe6 11. c3 Nc6 12. Nc4 Nh5 13. Nfxe5 dxe5 14. Qxh5 Qxd3 15. Nxe5 Qxe4 16. Nxc6 Qxc6 17. Be3 Rad8 18. Qg4 Rf6 19. g3 Rg6 20. Qe2 Rf8 {½-½ (20) Greig,S (2221)-Hehir,M (2263) ICCF email 2018}) 10... Re8 {[%emt 0:06:17]} (10... Bxa2 $11 11. Rxa2 Nc6) 11. Re1 {[%emt 0:06:03]} Nc6 {[%emt 0:04:42]} (11... Bxa2 $11 {might be stronger.} 12. Rxa2 Nc6) 12. Nc4 {[%emt 0:03:42]} (12. Bxe6 $14 fxe6 13. c3) 12... Bf8 {[%emt 0:09:09]} 13. Ng5 {[%emt 0:19:31]} Ne7 {[%emt 0:14:06]} 14. f4 {[%emt 0:10:40]} exf4 {[%emt 0:01:17]} 15. Bxf4 {[%emt 0:01:03]} Ng6 {[%emt 0:00:09]} 16. Nxe6 {[%emt 0:00:37]} fxe6 {[%emt 0:01:51]} 17. Bg3 {[%emt 0:01:23]} d5 {[%emt 0:09:45]} 18. exd5 {[%emt 0:02:37]} (18. Nd2 $16) 18... exd5 $11 {[%emt 0:03:21]} 19. Ne3 {[%emt 0:03:20][%cal Oe3d5] Threatens to win with Nxd5!} Kh8 {[%emt 0:02:25][%cal Oc5c4]} 20. Qf3 {[%emt 0:04:20][%cal Re3d5]} Ne5 {[%emt 0:02:40]} (20... Bd6 $11) 21. Qf5 $1 $14 {[%emt 0:02:44]} g6 {[%emt 0:02:24]} 22. Qf2 {[%emt 0:01:04][%cal Oe3d5]} Bg7 {[%emt 0:00:56] [#]} 23. Nf5 $1 {[%emt 0:04:57]} gxf5 {[%emt 0:06:17]} 24. Rxe5 $2 {[%emt 0:00:27]} (24. Bxe5 $14 {was forced to keep a grip.} Rxe5 25. Rxe5) 24... Ne4 $1 $17 {[%emt 0:01:05]} 25. Rxe8+ {[%emt 0:03:39]} ({White should try} 25. dxe4 Bxe5 26. Bxe5+ Rxe5 27. exd5) 25... Qxe8 {[%emt 0:00:06]} 26. Qf3 {[%emt 0:01:02]} Nxg3 {[%emt 0:02:15] Black is more active.} ({Don't do} 26... Bxb2 27. Re1 Bd4+ 28. Kh2 Nxg3 29. Rxe8+ Rxe8 30. Kxg3 $16 (30. Qxg3 $2 Be5 $19)) 27. Qxg3 {[%emt 0:00:05]} Qxa4 {[%emt 0:00:30]} 28. c3 {[%emt 0:01:06] [#]} d4 $1 {[%emt 0:02:05]} 29. Qe1 {[%emt 0:04:15]} dxc3 {[%emt 0:01:01]} 30. bxc3 {[%emt 0:02:49]} Qc2 {[%emt 0:02:02]} 31. Bd5 {[%emt 0:01:34][%cal Oa1a7]} Bxc3 {[%emt 0:04:27]} 32. Rc1 {[%emt 0:00:15]} Bxe1 {[%emt 0:05:26]} 33. Rxc2 {[%emt 0:00:06][%mdl 4096] Endgame KRB-KRB} Bb4 {[%emt 0:00:59]} (33... Bg3 $17 {aiming for ...Re8.} 34. Rxc5 Re8) 34. Bxb7 $15 {[%emt 0:00:15]} Rd8 {[%emt 0:00:09]} 35. Ba6 {[%emt 0:00:15]} Rd6 {[%emt 0:00:22]} 36. Ra2 {[%emt 0:00:28]} Kg7 {[%emt 0:00:15]} 37. Bc8 {[%emt 0:00:25][%csl LRa7,LRf5]} Kf6 {[%emt 0:02:36]} 38. Rxa7 {[%emt 0:02:09]} c4 {[%emt 0:01:06][%cal Bc5c4,Bc4c3,Bc3c2][%mdl 32]} 39. d4 {[%emt 0:01:40] [#] Inhibits Bc5. This move loses the game for White.} (39. Rxh7 $15 Rd8 40. Bxf5 (40. Rh6+ $2 Kg5 $19)) 39... c3 $1 $19 {[%emt 0:01:44]} ({Weaker is} 39... Rxd4 40. Ra6+ Ke5 41. Re6+ Kf4 42. Kf2 $17) 40. Rxh7 $2 {[%emt 0:02:21]} (40. g4) 40... Rxd4 {[%emt 0:01:38]} 41. Rc7 {[%emt 0:00:00]} Rd2 {[%emt 0:00:00] ...c2 is the strong threat.} 42. Rc6+ {[%emt 0:05:49]} (42. g4 $142 c2 43. Bxf5 Rd1+ 44. Kg2) 42... Kg5 {[%emt 0:00:00]} 43. h4+ {[%emt 0:02:09]} (43. g4 $142 c2 44. Bxf5 Rd1+ 45. Kf2) 43... Kf4 {[%emt 0:00:00]} 44. Kh2 {[%emt 0:09:40]} c2 {[%emt 0:00:38]} 45. Kh3 {[%emt 0:02:10]} Rd3+ {[%emt 0:01:22] Weighted Error Value: White=0.78/Black=0.24 (precise)} 0-1

[Event "GER-ch Youth-U18 2022"]
[Site "Willingen"]
[Date "2022.06.09"]
[Round "7.13"]
[White "Orf, Niklas"]
[Black "Wehrle, Maximilian"]
[Result "1-0"]
[ECO "B01"]
[WhiteElo "1797"]
[BlackElo "1786"]
[Annotator "NA RC COMBH"]
[PlyCount "37"]
[EventDate "2022.06.05"]
[EventType "swiss"]
[EventRounds "9"]
[EventCountry "GER"]
[SourceTitle "playchess.com"]
[Source "ChessBase"]
[SourceQuality "1"]
[TimeControl "40/4500+30:900+30"]

1. e4 {[%emt 0:00:00]} d5 {[%emt 0:00:00]} 2. exd5 {[%emt 0:00:00]} Qxd5 {[%emt 0:00:00]} 3. Nf3 {[%emt 0:00:00]} Nf6 {[%emt 0:00:00]} 4. Nc3 {[%emt 0:00:00]} Qd8 {[%emt 0:00:00]} 5. Bc4 {[%emt 0:00:00]} Bg4 {[%emt 0:00:00]} 6. Bxf7+ {[%emt 0:00:00]} Kxf7 {[%emt 0:00:00]} 7. Ne5+ {[%emt 0:00:00]} Kg8 {[%emt 0:00:00]} 8. Nxg4 {[%emt 0:00:00]} Qd7 {[%emt 0:00:00]} 9. Ne5 {[%emt 0:00:00]} Qd4 {[%emt 0:00:35]} 10. Qe2 {[%emt 0:00:00]} e6 {[%emt 0:00:00]} 11. Nb5 {[%emt 0:07:47]} Qd8 {[%emt 0:02:40]} 12. b3 {[%emt 0:02:49]} a6 {[%emt 0:00:27]} 13. Nc3 {[%emt 0:05:23]} Bd6 {[%emt 0:00:36]} 14. Bb2 {[%emt 0:00:55]} Bxe5 {[%emt 0:00:13]} 15. Qxe5 {[%emt 0:00:10]} Qd6 {[%emt 0:00:07]} 16. Qg5 {[%emt 0:04:34]} Nbd7 {[%emt 0:03:25]} 17. Ne4 {[%emt 0:01:52]} Qd5 {[%emt 0:00:20]} 18. Nxf6+ {[%emt 0:00:34]} Nxf6 {[%emt 0:00:17]} 19. Bxf6 {[%emt 0:00:20]} 1-0